bitfinex-derivatives/quotes_ETHF0:USTF0_20251119
["timestamp","ask_amount","ask_price","bid_price","bid_amount"]
[1763582662832,3.2078,2880.4,2879.8,0.2318]
[1763582663539,3.2078,2880.4,2880.3,0.2318]
[1763582663936,0.00949281,2880.6,2880.3,0.2318]
[1763582666839,0.2358,2880.4,2880.0,3.3479]
[1763582667039,0.2358,2880.1,2880.0,3.3479]
[1763582667239,0.00949281,2880.6,2879.6,1.86252031]
[1763582667240,3.2078,2880.2,2879.6,1.86252031]
[1763582667437,3.2078,2880.2,2879.5,0.1401]
[1763582667641,0.56311,2880.1,2879.5,0.1401]
[1763582667942,3.2078,2879.9,2879.5,0.1401]
[1763582668636,0.1692,2879.6,2879.5,0.1401]
[1763582669242,0.1692,2879.4,2879.3,0.00520933]
[1763582669638,0.1692,2879.4,2878.6,1.86252031]
[1763582669639,0.56329,2879.3,2878.6,1.86252031]
[1763582669842,3.2078,2879.2,2878.5,0.14373769]
[1763582670044,3.7711,2879.2,2878.5,0.14373769]
[1763582670940,0.00520933,2879.1,2879.0,0.3909]
[1763582672743,0.16940933,2879.1,2879.0,0.1499]
[1763582673042,0.1642,2878.9,2878.8,3.2078]
[1763582673245,0.00520933,2879.1,2878.8,3.2078]
[1763582673444,0.1642,2878.9,2878.5,3.35153769]
[1763582673944,0.00520933,2879.1,2879.0,0.1481]
[1763582674141,0.00520933,2879.1,2879.0,0.3823]
[1763582677150,0.56321,2879.6,2879.0,0.3823]
[1763582677343,3.2078,2879.4,2879.0,0.1481]
[1763582677744,0.56321,2879.6,2879.0,0.1481]
[1763582678054,0.56321,2879.6,2879.5,0.1481]
[1763582678248,0.56321,2879.6,2879.5,0.3823]
[1763582678546,0.56321,2879.6,2879.5,0.1481]
[1763582679153,3.21300933,2879.8,2879.7,0.2342]
[1763582680055,0.00520933,2879.8,2879.7,0.2342]
[1763582681552,0.00520933,2879.8,2879.6,3.2078]
[1763582681757,0.00520933,2879.8,2879.7,0.2342]
[1763582683251,0.72745,2879.4,2879.3,9.33e-06]
[1763582683557,6.21845715,2879.4,2879.3,9.33e-06]
[1763582683754,0.56335,2879.0,2878.5,0.14373769]
[1763582683955,2.44220715,2878.6,2878.5,0.00363769]
[1763582684257,3.3668,2878.6,2878.5,0.00363769]
[1763582687257,0.56343,2878.5,2878.0,0.1499]
[1763582687652,0.159,2878.1,2877.6,3.2078]
[1763582687958,3.2078,2878.0,2877.6,3.2078]
[1763582688359,3.2078,2878.0,2877.5,0.1481]
[1763582688360,3.3668,2877.7,2877.5,0.1481]
[1763582689252,0.159,2877.7,2877.5,0.1481]
[1763582689452,3.21211328,2878.0,2877.5,0.15078626]
[1763582690952,3.77565328,2878.0,2877.5,0.15078626]
[1763582693959,0.56785328,2878.0,2877.5,0.15078626]
[1763582694158,3.77565328,2878.0,2877.5,0.15078626]
[1763582697262,3.77565328,2878.0,2877.5,0.00268626]
[1763582697263,5.65000715,2877.6,2877.5,0.00268626]
[1763582697568,3.3668,2877.6,2877.5,0.00268626]
[1763582699262,3.3668,2877.6,2876.3,1.86252031]
[1763582699263,6.05460715,2877.6,2876.3,3.442]
[1763582699459,3.2078,2877.2,2876.5,0.1481]
[1763582699765,3.2078,2876.9,2876.5,0.1481]
[1763582700262,3.2078,2877.5,2877.0,0.1481]
[1763582700463,0.1563,2877.1,2877.0,0.1481]
[1763582701261,0.1563,2877.1,2876.6,3.2078]
[1763582701467,0.1563,2876.6,2876.5,0.15111519]
[1763582701659,3.2078,2877.2,2876.5,0.38531519]
[1763582701858,0.56373,2877.0,2876.5,0.38531519]
[1763582702058,0.1563,2876.6,2876.5,0.14531519]
[1763582702260,3.2078,2877.2,2876.5,0.39641519]
[1763582702666,3.77148,2877.2,2876.5,0.39641519]
[1763582702869,3.77148,2877.2,2876.5,0.14531519]
[1763582704163,3.2078,2877.2,2876.5,0.14531519]
[1763582704363,3.2078,2877.2,2876.6,3.2078]
[1763582704757,1.465,2877.4,2876.6,3.2078]
[1763582705669,1.465,2877.4,2877.0,0.1423]
[1763582706060,3.2078,2877.2,2877.0,0.1423]
[1763582706265,0.1569,2876.6,2876.5,0.14531519]
[1763582706967,3.2078,2876.9,2876.5,0.14531519]
[1763582707167,3.2078,2876.9,2876.8,0.2511]
[1763582707466,3.2078,2877.3,2876.8,0.2511]
[1763582707861,3.2078,2877.3,2877.2,0.2511]
[1763582708067,3.3647,2877.3,2877.0,0.1423]
[1763582708971,0.7206,2877.1,2877.0,0.1423]
[1763582709365,0.7206,2877.1,2876.6,3.2078]
[1763582709960,0.1569,2876.7,2876.5,0.14531519]
[1763582710168,0.1569,2876.6,2876.0,0.1481]
[1763582710469,0.16210933,2876.6,2876.0,0.1481]
[1763582711171,0.16210933,2876.6,2876.0,0.1516272]
[1763582711374,0.00520933,2876.6,2876.5,0.1423]
[1763582711767,0.16210933,2876.6,2876.5,0.1423]
[1763582712675,0.16210933,2876.6,2876.1,3.2078]
[1763582715080,0.16210933,2876.6,2876.5,0.1423]
[1763582715483,0.16210933,2876.6,2876.5,0.3934]
[1763582715484,0.00520933,2876.6,2876.5,0.3934]
[1763582717072,3.2078,2877.1,2876.5,0.1423]
[1763582717278,3.2078,2877.1,2877.0,0.3934]
[1763582718691,3.3699,2877.1,2876.5,0.1423]
[1763582718893,3.3699,2877.1,2877.0,0.1423]
[1763582719385,3.3699,2877.1,2876.5,0.1423]
[1763582719684,5.65310715,2877.1,2876.5,0.1423]
[1763582719876,0.56373,2877.0,2876.5,0.3934]
[1763582723083,3.2078,2877.1,2877.0,0.1423]
[1763582723280,3.2078,2877.1,2877.0,0.3934]
[1763582723483,3.3699,2877.1,2877.0,0.1423]
[1763582724687,3.3699,2877.1,2876.5,0.1423]
[1763582724876,3.3699,2877.1,2877.0,0.3934]
[1763582724877,3.2078,2877.1,2877.0,0.3934]
[1763582725080,0.56368,2877.2,2877.0,0.3934]
[1763582726378,0.1621,2877.1,2877.0,0.1423]
[1763582726585,0.00520933,2877.3,2877.2,0.2402]
[1763582727187,0.00520933,2877.3,2877.0,0.1423]
[1763582727188,0.16720933,2877.3,2877.0,0.1423]
[1763582727892,0.00520933,2877.3,2877.2,0.2402]
[1763582728086,10.01906322,2877.3,2876.5,1.87441351]
[1763582728294,0.56382,2876.5,2876.0,3.3594272]
[1763582728587,0.93110502,2876.8,2876.5,0.1406]
[1763582728793,5.60009762,2877.0,2876.5,0.1406]
[1763582728794,3.77153,2877.0,2876.5,0.1406]
[1763582729089,0.81383851,2876.9,2876.5,0.1406]
[1763582729291,3.77153,2877.0,2876.5,0.1406]
[1763582729292,0.81383851,2876.8,2876.5,0.1406]
[1763582729486,3.77153,2877.0,2876.5,0.1406]
[1763582729786,0.81411957,2876.9,2876.5,0.1406]
[1763582730091,3.77153,2877.0,2876.5,0.1406]
[1763582730288,0.81409744,2876.9,2876.5,0.1406]
[1763582730488,3.77153,2877.0,2876.5,0.1406]
[1763582730792,0.81407981,2876.9,2876.5,0.1406]
[1763582730992,3.77153,2877.0,2876.5,0.1406]
[1763582731190,0.81407933,2876.9,2876.5,0.1406]
[1763582731392,3.77153,2877.0,2876.5,0.1406]
[1763582731690,0.81410798,2876.9,2876.5,0.1406]
[1763582731888,0.56378,2876.7,2876.5,0.1406]
[1763582733786,0.56378,2876.7,2876.6,0.2402]
[1763582734189,3.2078,2877.0,2876.5,0.1406]
[1763582734493,0.81403427,2876.9,2876.5,0.1406]
[1763582734682,3.77152,2877.0,2876.5,0.1406]
[1763582734884,0.81411928,2876.9,2876.5,0.1406]
[1763582735082,3.2078,2877.0,2876.3,3.2078]
[1763582735293,3.2078,2876.4,2876.3,0.2348]
[1763582735687,3.2078,2876.4,2876.0,0.1516272]
[1763582735688,3.77164,2876.4,2876.0,0.1516272]
[1763582738492,3.77164,2876.4,2876.3,0.2348]
[1763582738687,3.2078,2876.7,2876.5,0.1409]
[1763582739998,3.66065565,2876.6,2876.5,0.1409]
[1763582740192,0.5638,2876.6,2876.5,0.1409]
[1763582740793,0.5638,2876.6,2876.5,0.3757]
[1763582742093,0.5638,2876.6,2876.5,0.1409]
[1763582742294,0.56382,2876.5,2876.0,3.3594272]
[1763582743707,0.56382,2876.5,2876.4,0.2348]
[1763582744007,3.7715,2877.1,2877.0,0.1409]
[1763582744299,4.58466306,2877.1,2877.0,0.1409]
[1763582745299,4.58466306,2877.1,2877.0,0.3757]
[1763582745604,3.2078,2877.1,2877.0,0.3757]
[1763582745905,0.00520933,2877.3,2877.0,0.3757]
[1763582746199,0.00520933,2877.3,2877.0,0.1409]
[1763582746596,0.56369,2877.2,2877.0,0.1409]
[1763582749408,3.2078,2877.1,2877.0,0.1409]
[1763582750004,0.56374,2876.9,2876.5,0.1409]
[1763582751607,0.56374,2876.9,2876.8,0.2348]
[1763582751908,3.2078,2877.1,2877.0,0.3757]
[1763582752106,0.00520933,2877.3,2877.0,0.3757]
[1763582752408,4.02136376,2877.2,2877.0,0.3757]
[1763582752608,3.2078,2877.2,2877.0,0.3757]
[1763582752804,3.2078,2877.2,2877.0,0.1409]
[1763582753004,0.56886933,2877.3,2877.0,0.1409]
[1763582753309,4.02166861,2877.2,2877.0,0.1409]
[1763582753510,3.2078,2877.2,2877.0,0.1409]
[1763582753699,0.56886933,2877.3,2877.0,0.1409]
[1763582755904,0.56886933,2877.3,2877.2,0.2348]
[1763582756703,0.56886933,2877.3,2877.0,0.1409]
[1763582758104,4.5854129,2877.2,2877.0,0.1409]
[1763582758307,3.77149,2877.2,2877.0,0.1409]
[1763582761910,0.81325573,2877.1,2877.0,0.1409]
[1763582762111,1.37695573,2877.1,2876.5,0.1409]
[1763582762312,0.5637,2877.1,2877.0,0.1402]
[1763582762618,1.37712053,2877.1,2877.0,0.1402]
[1763582765117,0.81342053,2877.1,2877.0,0.3927]
[1763582765318,0.00520933,2877.3,2877.2,0.2525]
[1763582765517,0.82019679,2877.3,2877.2,0.2525]
[1763582768825,3.2078,2877.6,2877.5,0.3927]
[1763582769022,3.2078,2877.6,2877.5,0.1402]
[1763582769023,4.02314266,2877.6,2877.5,0.1402]
[1763582769224,5.65703725,2877.6,2877.5,0.1402]
[1763582769423,5.65703725,2877.6,2877.0,0.1402]
[1763582769618,0.81534266,2877.5,2877.0,0.1402]
[1763582769828,0.81534266,2877.4,2877.0,0.14540933]
[1763582773017,0.81534266,2877.4,2877.3,0.2525]
[1763582775628,0.81534266,2877.4,2877.0,3.35320933]
[1763582775815,0.81534266,2877.4,2877.0,0.14540933]
[1763582776020,1.63389459,2877.3,2877.0,0.14540933]
[1763582776220,4.02303612,2877.2,2877.0,0.14540933]
[1763582776420,3.2078,2877.2,2877.0,0.14540933]
[1763582777025,3.77149,2877.2,2877.0,0.14540933]
[1763582777225,0.8151398,2877.1,2877.0,0.14540933]
[1763582777426,0.8151398,2877.1,2877.0,0.39790933]
[1763582777630,0.81512067,2877.1,2877.0,0.14540933]
[1763582777925,0.81512067,2877.1,2877.0,0.39790933]
[1763582778723,0.81512067,2877.1,2877.0,0.14540933]
[1763582779031,4.14411435,2877.5,2877.3,0.2525]
[1763582779230,0.81539808,2877.4,2877.3,0.2525]
[1763582779728,0.00520933,2877.5,2877.3,0.2525]
[1763582779921,0.00520933,2877.5,2877.4,0.2525]
[1763582780129,3.21300933,2877.5,2877.4,0.2525]
[1763582780525,4.02842245,2877.5,2877.0,2.0192369]
[1763582780830,3.21300933,2877.5,2877.4,0.2525]
[1763582781126,3.21300933,2877.5,2877.0,2.0192369]
[1763582781127,4.02842441,2877.5,2877.0,2.0192369]
[1763582781324,3.21300933,2877.5,2877.0,2.0192369]
[1763582781520,3.21300933,2877.5,2877.0,0.14540933]
[1763582781932,3.2078,2877.2,2877.0,0.14540933]
[1763582782135,0.5637,2877.1,2877.0,0.39790933]
[1763582782527,3.2078,2877.2,2877.1,0.2525]
[1763582782728,4.02304421,2877.2,2877.1,0.2525]
[1763582783627,3.77664933,2877.5,2877.1,0.2525]
[1763582783822,3.77664933,2877.5,2877.0,0.14540933]
[1763582783823,0.81520053,2877.4,2877.3,0.2525]
[1763582784940,0.81520053,2877.4,2877.0,0.14540933]
[1763582785238,3.77664933,2877.5,2877.0,0.14540933]
[1763582785538,0.56368,2877.2,2877.0,0.14540933]
[1763582785735,3.2078,2877.2,2877.0,0.14540933]
[1763582785932,1.37861785,2877.1,2877.0,0.14540933]
[1763582786530,1.37861785,2877.1,2877.0,0.15180933]
[1763582787036,0.5638,2876.6,2876.5,0.1409]
[1763582787237,4.58651785,2876.6,2876.5,0.1409]
[1763582787725,4.58651785,2876.6,2876.5,0.385]
[1763582788129,4.58651785,2876.6,2876.5,0.1409]
[1763582788537,3.2078,2876.6,2876.5,0.385]
[1763582790132,0.56372,2877.0,2876.9,0.2441]
[1763582790433,1.3777833,2877.0,2876.9,0.2441]
[1763582790636,0.8140633,2877.0,2876.9,0.2441]
[1763582790937,3.2078,2877.1,2877.0,0.3907]
[1763582792840,3.2078,2877.1,2877.0,0.1466]
[1763582793233,3.2078,2877.1,2877.0,0.4009]
[1763582793433,0.00520933,2877.5,2877.4,0.2543]
[1763582793634,0.56351,2878.1,2877.9,0.2543]
[1763582793932,3.2078,2878.2,2877.9,0.2543]
[1763582794934,3.21300933,2878.2,2877.9,0.2543]
[1763582796243,3.21300933,2878.2,2877.7,0.00520933]
[1763582798040,3.77649933,2878.2,2877.7,0.00520933]
[1763582798444,3.77649933,2878.2,2877.7,0.25950933]
[1763582798445,3.2078,2877.8,2877.7,0.25950933]
[1763582798940,3.2078,2877.8,2877.7,0.00520933]
[1763582799335,3.77136,2877.8,2877.7,0.00520933]
[1763582803139,3.2078,2877.8,2877.7,0.25950933]
[1763582803543,0.00431328,2878.0,2877.9,0.2543]
[1763582806147,0.00520933,2878.2,2878.1,0.2543]
[1763582807150,0.00806938,2878.2,2878.1,0.25744078]
[1763582807352,3.2078,2878.7,2878.6,0.2543]
[1763582807749,3.77105,2879.4,2879.3,0.2543]
[1763582808052,3.77105,2879.4,2879.0,0.1459]
[1763582808251,3.77366058,2879.4,2879.0,0.1459]
[1763582808950,3.77366058,2879.4,2879.3,0.2543]
[1763582809354,3.21041058,2879.4,2879.3,0.2543]
[1763582809753,0.00520933,2879.5,2879.4,0.2543]
[1763582809952,0.56301,2880.6,2880.5,0.1459]
[1763582810155,3.2078,2880.6,2880.5,0.4002]
[1763582810550,3.2078,2881.0,2880.5,0.1459]
[1763582810858,3.2078,2880.7,2880.5,0.14846903]
[1763582811160,3.2078,2880.7,2880.5,0.15367836]
[1763582811563,0.56305,2880.4,2880.0,0.1459]
[1763582811763,3.2078,2880.1,2880.0,0.1459]
[1763582812257,0.56313,2880.0,2879.5,0.1459]
[1763582812456,3.2078,2879.7,2879.5,0.1459]
[1763582812657,3.2078,2879.7,2879.5,0.14972125]
[1763582815251,3.2078,2879.7,2879.5,0.00382125]
[1763582815252,0.56321,2879.6,2879.5,0.00382125]
[1763582815461,0.56321,2879.6,2879.5,0.14972125]
[1763582815657,0.56321,2879.6,2879.5,0.00382125]
[1763582816565,0.56321,2879.6,2878.5,0.1459]
[1763582816566,0.56327,2879.3,2878.5,0.1459]
[1763582816860,3.2078,2879.0,2878.5,0.1459]
[1763582817655,3.21300933,2879.0,2878.5,0.15381152]
[1763582820660,3.2078,2878.6,2878.5,0.15381152]
[1763582820864,3.21092006,2878.6,2878.5,0.15381152]
[1763582821065,3.77433006,2878.6,2878.5,0.00791152]
[1763582821665,3.77433006,2878.6,2878.5,0.15761152]
[1763582822059,0.00312006,2878.6,2878.5,0.40801152]
[1763582822762,3.21092006,2878.6,2878.5,0.15761152]
[1763582823766,0.00312006,2878.6,2878.5,0.40801152]
[1763582827162,0.00312006,2878.6,2878.5,6.40801152]
[1763582827468,0.00312006,2878.6,2878.5,0.40801152]
[1763582827871,3.21092006,2878.6,2878.5,0.40801152]
[1763582828165,3.77433006,2878.6,2878.5,0.15761152]
[1763582828364,0.00312006,2878.6,2878.5,0.40801152]
[1763582830169,0.00312006,2878.6,2878.5,0.49483101]
[1763582830364,0.00520933,2879.0,2878.9,0.2504]
[1763582830665,3.2078,2880.1,2880.0,0.1497]
[1763582831070,3.2078,2880.1,2880.0,0.4001]
[1763582831273,3.2108904,2880.1,2880.0,0.23651949]
[1763582832270,3.7740004,2880.1,2880.0,0.23651949]
[1763582832464,0.56317,2879.8,2879.5,0.1497]
[1763582832664,3.2078,2879.6,2879.5,0.1497]
[1763582833074,3.2078,2879.6,2879.0,0.1497]
[1763582833866,3.2078,2879.6,2879.5,0.1497]
[1763582834069,1.24676688,2880.1,2879.5,0.1497]
[1763582834070,3.2078,2879.8,2879.5,0.4001]
[1763582834470,0.81218989,2879.7,2879.0,0.1497]
[1763582834670,3.2078,2879.7,2879.0,0.1497]
[1763582834975,3.771,2879.7,2879.0,0.1497]
[1763582835175,3.2078,2879.4,2879.0,0.1497]
[1763582835875,3.2078,2879.1,2879.0,0.1497]
[1763582836073,3.2078,2879.4,2879.0,0.1497]
[1763582838779,0.56323,2879.5,2879.0,0.1497]
[1763582839172,3.2078,2879.4,2879.0,0.1497]
[1763582841169,3.77105,2879.4,2879.0,0.1497]
[1763582841880,3.77111,2879.1,2879.0,0.1497]
[1763582842083,4.58450197,2879.1,2879.0,0.1497]
[1763582842583,4.58450197,2879.1,2878.5,0.15761152]
[1763582842786,3.2078,2878.7,2878.5,0.15761152]
[1763582843280,3.2078,2879.0,2878.5,0.15761152]
[1763582843881,3.2078,2879.0,2878.5,3.36541152]
[1763582844478,0.56331,2879.1,2879.0,0.4001]
[1763582845884,4.14055736,2879.5,2879.0,0.4001]
[1763582846073,0.81385567,2879.4,2879.0,0.4001]
[1763582846384,3.2078,2879.5,2879.0,0.4001]
[1763582846581,0.81390067,2879.4,2879.0,0.4001]
[1763582846781,3.77104,2879.5,2879.0,0.4001]
[1763582847087,0.81388192,2879.4,2879.0,0.1497]
[1763582847387,3.77104,2879.5,2879.0,0.1497]
[1763582847689,0.81388986,2879.4,2879.0,0.1497]
[1763582847878,3.77104,2879.5,2879.0,0.1497]
[1763582848080,0.81391904,2879.4,2879.0,0.1497]
[1763582848389,3.77104,2879.5,2879.0,0.1497]
[1763582848583,0.81393664,2879.4,2879.0,0.1497]
[1763582848884,3.77104,2879.5,2879.0,0.1497]
[1763582849089,3.2078,2879.2,2879.0,0.1497]
[1763582849490,0.56331,2879.1,2879.0,0.1497]
[1763582849786,1.37714811,2879.1,2878.5,3.36541152]
[1763582849975,0.56331,2879.1,2879.0,0.152]
[1763582850178,0.56337,2878.8,2878.5,0.15761152]
[1763582850385,3.2078,2878.7,2878.5,0.15761152]
[1763582850778,0.56341,2878.6,2878.5,0.15761152]
[1763582851977,3.2078,2878.7,2878.5,0.15761152]
[1763582852182,3.2078,2878.7,2878.6,0.2393]
[1763582852391,0.00520933,2878.8,2878.7,0.243]
[1763582853388,0.00520933,2878.8,2878.5,0.15761152]
[1763582853389,0.81921979,2878.8,2878.5,0.15761152]
[1763582853588,0.00520933,2878.8,2878.5,0.15761152]
[1763582855189,3.2078,2878.6,2878.5,0.15761152]
[1763582856492,3.2078,2878.6,2878.5,0.40061152]
[1763582856689,0.00520933,2878.8,2878.7,0.243]
[1763582856985,3.2078,2879.3,2879.0,0.1431]
[1763582859190,0.56331,2879.1,2879.0,0.1431]
[1763582859392,1.37905364,2879.1,2879.0,0.1431]
[1763582860285,1.37905364,2879.1,2878.5,0.15761152]
[1763582860488,3.2078,2878.9,2878.5,0.15761152]
[1763582860788,0.81574364,2878.8,2878.5,0.00791152]
[1763582860987,0.81574364,2878.7,2878.5,0.00791152]
[1763582861193,0.81574364,2878.6,2878.5,0.00791152]
[1763582861493,1.37915364,2878.6,2878.5,0.15101152]
[1763582862796,4.14055736,2878.9,2878.5,0.39401152]
[1763582862993,0.81608748,2878.8,2878.5,0.39401152]
[1763582863297,0.81608748,2878.7,2878.5,0.39401152]
[1763582863482,4.14055736,2878.9,2878.5,0.15101152]
[1763582863684,0.81458189,2878.8,2878.5,0.15101152]
[1763582863880,4.14055736,2878.9,2878.5,0.15101152]
[1763582863881,0.81458189,2878.7,2878.5,0.15101152]
[1763582864087,4.14055736,2878.9,2878.5,0.15101152]
[1763582864288,3.2078,2878.6,2878.5,0.15101152]
[1763582864489,4.02238286,2878.6,2878.5,0.15101152]
[1763582864885,3.2078,2878.7,2878.5,0.39401152]
[1763582865094,0.81454231,2878.6,2878.5,0.39401152]
[1763582865295,4.14055736,2879.0,2878.5,0.39401152]
[1763582865591,4.14055736,2879.0,2878.8,0.243]
[1763582865592,0.81457687,2878.9,2878.8,0.243]
[1763582867292,0.81457687,2878.9,2878.5,0.15101152]
[1763582867497,0.81457687,2878.8,2878.5,0.15101152]
[1763582867694,3.2078,2878.7,2878.5,0.15101152]
[1763582868198,3.2078,2879.0,2878.5,0.15101152]
[1763582868399,0.81495878,2878.9,2878.8,0.243]
[1763582868791,3.2078,2879.0,2878.8,0.243]
[1763582869298,0.81507301,2878.9,2878.5,0.15101152]
[1763582869596,3.2078,2879.0,2878.5,0.15101152]
[1763582869803,0.81524602,2878.9,2878.5,0.15101152]
[1763582869996,3.2078,2879.0,2878.5,0.15101152]
[1763582870296,0.81525663,2878.9,2878.5,0.15101152]
[1763582870498,0.81525663,2878.8,2878.5,0.15101152]
[1763582870697,3.2078,2879.0,2878.5,0.15101152]
[1763582870897,0.81547984,2878.9,2878.5,0.15101152]
[1763582871086,0.81547984,2878.8,2878.5,0.15101152]
[1763582871398,3.2078,2879.0,2878.5,0.15101152]
[1763582871603,0.81561079,2878.9,2878.5,0.15101152]
[1763582871801,0.81561079,2878.8,2878.5,0.15101152]
[1763582872002,3.2078,2878.7,2878.5,0.15101152]
[1763582872296,3.77119,2878.7,2878.5,0.15101152]
[1763582872688,0.81555641,2878.6,2878.5,0.15101152]
[1763582873795,3.77119,2878.7,2878.5,0.15101152]
[1763582874001,0.8164354,2878.6,2878.5,0.15101152]
[1763582874394,3.2078,2878.7,2878.6,0.243]
[1763582874594,4.02425038,2878.7,2878.6,0.243]
[1763582874800,0.81645038,2878.7,2878.6,0.243]
[1763582876996,4.14055736,2879.0,2878.6,0.243]
[1763582877308,0.81667591,2878.9,2878.6,0.243]
[1763582877497,0.81667591,2878.8,2878.7,0.243]
[1763582877896,3.2078,2879.0,2878.7,0.243]
[1763582878306,3.2078,2879.0,2878.9,0.243]
[1763582878599,3.2078,2879.0,2878.5,0.15101152]
[1763582879295,0.93275736,2879.2,2879.0,0.3861]
[1763582880407,0.93275736,2879.2,2879.0,0.1431]
[1763582880605,0.93275736,2879.1,2879.0,0.1431]
[1763582880899,0.5633,2879.2,2879.0,0.1431]
[1763582880900,1.80697648,2879.2,2879.0,0.1431]
[1763582881297,0.93636746,2879.1,2879.0,0.3861]
[1763582881700,0.93636746,2879.1,2879.0,0.1431]
[1763582882102,1.49966746,2879.2,2879.0,0.3861]
[1763582882502,0.93636746,2879.2,2879.1,0.2472]
[1763582882809,4.14416746,2879.3,2879.2,0.2472]
[1763582883007,3.2078,2879.3,2879.2,0.2472]
[1763582883806,3.2078,2879.3,2879.0,0.1431]
[1763582884000,4.14416746,2879.3,2879.0,0.1431]
[1763582884800,4.70743746,2879.3,2879.0,0.1431]
[1763582885811,0.56327,2879.3,2879.2,0.2472]
[1763582886405,0.00520933,2879.4,2879.3,0.2472]
[1763582888300,0.56317,2879.8,2879.3,0.2472]
[1763582888508,0.56317,2879.8,2879.5,0.1392]
[1763582889006,0.56324,2879.5,2879.0,0.1431]
[1763582889413,0.56844933,2879.5,2879.0,0.1431]
[1763582890004,3.77107,2879.3,2879.0,0.1431]
[1763582890309,1.75126888,2879.2,2879.0,0.1431]
[1763582890508,0.81490142,2879.1,2879.0,0.1431]
[1763582890901,1.75126888,2879.1,2879.0,0.1431]
[1763582891302,0.81490142,2879.1,2879.0,0.1431]
[1763582892810,0.81490142,2879.1,2879.0,0.3903]
[1763582893012,3.2078,2879.3,2879.2,0.2472]
[1763582893313,4.02362731,2879.3,2879.2,0.2472]
[1763582895107,0.00520933,2879.5,2879.4,0.2472]
[1763582895310,9.33e-06,2879.5,2879.4,3.455]
[1763582895516,0.5631,2880.2,2880.0,0.1392]
[1763582895713,0.81802896,2880.1,2880.0,0.1392]
[1763582899317,0.81802896,2880.1,2880.0,0.3864]
[1763582899913,0.0030904,2880.1,2880.0,0.3864]
[1763582900313,0.0030904,2880.1,2880.0,0.1392]
[1763582900715,4.58764589,2880.1,2880.0,0.1392]
[1763582901221,10.96090335,2880.1,2879.5,0.1392]
[1763582901516,3.2078,2879.6,2879.5,0.1392]
[1763582901712,4.02144549,2879.6,2879.5,0.1392]
[1763582902016,3.2078,2879.6,2879.5,0.1392]
[1763582902207,0.56319,2879.7,2879.5,0.3864]
[1763582902415,0.56319,2879.7,2879.5,0.1392]
[1763582902613,0.56319,2879.7,2879.6,0.2472]
[1763582902818,1.3769926,2879.7,2879.5,0.1392]
[1763582903020,0.56319,2879.7,2879.5,0.1392]
[1763582903723,0.8137097,2879.6,2879.0,0.1431]
[1763582904018,3.2078,2879.1,2879.0,0.1431]
[1763582907218,0.56341,2878.6,2878.0,0.1392]
[1763582907424,4.58572461,2878.6,2878.0,0.1392]
[1763582907611,0.56341,2878.6,2878.1,3.2078]
[1763582910022,0.00520933,2878.8,2878.1,3.2078]
[1763582910023,0.00520933,2878.8,2878.7,0.2519]
[1763582912424,3.77109,2879.3,2878.5,3.35881152]
[1763582912729,3.2078,2879.3,2879.2,0.2519]
[1763582912924,3.2078,2879.3,2879.0,0.1477]
[1763582913428,0.56324,2879.5,2879.0,0.1477]
[1763582913627,0.81757535,2879.4,2879.0,0.1477]
[1763582913826,0.00345139,2879.4,2879.0,0.1477]
[1763582914028,4.58525342,2879.3,2879.0,0.1477]
[1763582914228,3.2078,2879.3,2879.0,0.1477]
[1763582914529,0.56331,2879.1,2879.0,0.1477]
[1763582915834,0.56331,2879.1,2879.0,0.3842]
[1763582916028,1.37745427,2879.1,2879.0,0.1477]
[1763582916229,1.37742395,2879.1,2879.0,0.1477]
[1763582918620,1.49866456,2879.1,2879.0,0.1477]
[1763582918824,2.31277851,2879.1,2879.0,0.1477]
[1763582919130,0.56337,2878.8,2878.5,0.15101152]
[1763582919332,4.58481641,2878.7,2878.5,0.15101152]
[1763582919525,3.77119,2878.7,2878.5,0.15101152]
[1763582920226,0.56339,2878.7,2878.5,0.15101152]
[1763582920823,3.2078,2878.6,2878.5,0.15101152]
[1763582921024,3.2078,2878.6,2878.5,0.00791152]
[1763582921025,4.58527518,2878.6,2878.5,0.00791152]
[1763582921233,5.52062974,2878.6,2878.5,0.00791152]
[1763582921433,4.58527518,2878.6,2878.5,0.00791152]
[1763582922132,4.95721974,2878.6,2878.0,0.1392]
[1763582922325,3.2078,2878.1,2878.0,0.1392]
[1763582922825,3.77125,2878.4,2878.0,0.3757]
[1763582923029,3.77125,2878.4,2878.0,0.37919493]
[1763582926731,3.77125,2878.4,2878.3,0.2365]
[1763582926933,3.77125,2878.4,2878.0,0.14269493]
[1763582928432,3.77125,2878.4,2878.3,0.2365]
[1763582928924,3.77125,2878.4,2878.0,0.14269493]
[1763582929323,3.7713,2878.1,2878.0,0.14269493]
[1763582929528,4.58379135,2878.1,2878.0,0.14269493]
[1763582930326,4.58379135,2878.1,2878.0,0.15119493]
[1763582932034,4.58379135,2878.1,2878.0,0.38769493]
[1763582932427,4.58379135,2878.1,2878.0,0.15119493]
[1763582933930,4.58379135,2878.1,2878.0,0.00349493]
[1763582934828,4.58379135,2878.1,2878.0,0.15119493]
[1763582935137,4.58379135,2878.1,2878.0,0.38769493]
[1763582935431,3.2078,2878.1,2878.0,0.38769493]
[1763582935632,3.393,2878.5,2878.0,0.38769493]
[1763582935633,6.6008,2878.5,2878.4,0.2365]
[1763582935833,7.41364193,2878.5,2878.4,0.2365]
[1763582936837,6.6008,2878.5,2878.4,0.2365]
[1763582937439,3.393,2878.5,2878.4,0.2365]
[1763582938342,3.393,2878.5,2878.0,0.15119493]
[1763582938343,6.6008,2878.5,2878.0,0.15119493]
[1763582939039,7.16424,2878.5,2878.0,0.15119493]
[1763582939240,0.81296559,2878.4,2878.0,0.15119493]
[1763582939533,7.16424,2878.5,2878.0,0.15119493]
[1763582939838,0.81295937,2878.4,2878.0,0.15119493]
[1763582940034,3.2078,2878.5,2878.0,0.15119493]
[1763582940240,0.8129322,2878.4,2878.0,0.15119493]
[1763582940441,3.2078,2878.5,2878.0,0.15119493]
[1763582940637,3.2078,2878.2,2878.0,0.15119493]
[1763582940837,3.2078,2878.1,2878.0,0.15119493]
[1763582941036,4.02082789,2878.1,2878.0,0.15119493]